[Event "Charlotte Open 2020"]
[Site "Charlotte"]
[Date "2020.01.05"]
[Round "8.6"]
[White "Iotov, Valentin"]
[Black "Korley, Kassa"]
[Result "1-0"]
[ECO "E70"]
[WhiteElo "2516"]
[BlackElo "2432"]
[Annotator "ChessBase"]
[PlyCount "77"]
[EventDate "2020.01.02"]
[EventType "swiss"]
[EventCountry "USA"]
[SourceTitle "playchess.com"]
[Source "ChessBase"]
[SourceQuality "1"]
[TimeControl "6000+30"]

1. c4 {[%emt 0:02:30]} g6 {[%emt 0:00:00]} 2. d4 {[%emt 0:07:35]} Bg7 {[%emt 0:00:00]} 3. e4 {[%emt 0:02:05]} d6 {[%emt 0:00:00]} 4. Nc3 {[%emt 0:01:05]} Nf6 {[%emt 0:01:30]} 5. Bd3 {[%emt 0:00:28]} O-O {[%emt 0:10:02]} 6. Nge2 {[%emt 0:00:04]} c5 {[%emt 0:01:30]} 7. d5 {[%emt 0:00:04]} a6 {[%emt 0:06:06]} 8. a4 {[%emt 0:03:16]} e5 {[%emt 0:05:08]} 9. h3 {[%emt 0:01:39]} h5 {[%emt 0:07:10]} 10. Bg5 {[%emt 0:04:51]} Qa5 {[%emt 0:03:56]} 11. Qd2 {[%emt 0:04:09]} Nbd7 {[%emt 0:01:48]} 12. Be3 {[%emt 0:15:22]} Re8 {[%emt 0:02:47]} 13. f3 {[%emt 0:02:35]} Nf8 {[%emt 0:00:30]} 14. g4 {[%emt 0:02:53]} Bd7 {[%emt 0:00:16]} 15. Rg1 {[%emt 0:04:42]} Reb8 {[%emt 0:01:10]} 16. Ng3 {[%emt 0:15:30]} hxg4 {[%emt 0:00:37]} 17. hxg4 {[%emt 0:00:15]} b5 {[%emt 0:01:36]} 18. Nf5 {[%emt 0:02:18]} Bxf5 {[%emt 0:02:52]} 19. gxf5 {[%emt 0:00:44]} bxc4 {[%emt 0:00:08]} 20. Bxc4 {[%emt 0:00:47]} Nh5 {[%emt 0:01:03]} 21. b3 {[%emt 0:37:38]} Rb7 {[%emt 0:02:18]} 22. Ne2 {[%emt 0:00:00]} Qd8 {[%emt 0:03:52]} 23. O-O-O {[%emt 0:00:00]} Rab8 {[%emt 0:00:06]} 24. Kc2 {[%emt 0:00:00]} Rb4 {[%emt 0:00:58]} 25. Rb1 {[%emt 0:00:00]} Qa5 {[%emt 0:04:34]} 26. Kd3 {[%emt 0:00:00]} Nd7 {[%emt 0:10:11]} 27. fxg6 {[%emt 0:00:00]} f5 {[%emt 0:11:02]} 28. Rg5 {[%emt 0:00:00]} f4 {[%emt 0:04:16]} 29. Rxh5 {[%emt 0:00:00]} fxe3 {[%emt 0:02:06]} 30. Kxe3 {[%emt 0:00:00]} Nb6 {[%emt 0:02:08]} 31. Kf2 {[%emt 0:00:00]} Nxc4 {[%emt 0:06:11]} 32. bxc4 {[%emt 0:00:00]} Qd8 {[%emt 0:20:09]} 33. Rbh1 {[%emt 0:00:00]} R8b7 {[%emt 0:00:00]} 34. Qc1 {[%emt 0:03:31]} Rxa4 {[%emt 0:00:00]} 35. Qg1 {[%emt 0:00:54]} Ra2 {[%emt 0:00:00]} 36. Qg4 {[%emt 0:00:53]} Qe8 {[%emt 0:00:00]} 37. Qh3 {[%emt 0:00:46]} Rxe2+ {[%emt 0:00:00]} 38. Kxe2 {[%emt 0:00:02]} Rb2+ {[%emt 0:00:00]} 39. Kd3 {[%emt 0:00:11]} 1-0

[Event "Charlotte Open 2020"]
[Site "Charlotte"]
[Date "2020.01.05"]
[Round "8.7"]
[White "Grabinsky, Aaron"]
[Black "Song, Edward"]
[Result "1-0"]
[ECO "A01"]
[WhiteElo "2363"]
[BlackElo "2411"]
[Annotator "ChessBase"]
[PlyCount "147"]
[EventDate "2020.01.02"]
[EventType "swiss"]
[EventCountry "USA"]
[SourceTitle "playchess.com"]
[Source "ChessBase"]
[SourceQuality "1"]
[TimeControl "6000+30"]

1. b3 {[%emt 0:00:00]} d5 {[%emt 0:00:00]} 2. Bb2 {[%emt 0:00:00]} Bg4 {[%emt 0:00:05]} 3. f3 {[%emt 0:00:14]} Bh5 {[%emt 0:00:07]} 4. e4 {[%emt 0:01:24]} dxe4 {[%emt 0:01:31]} 5. Qe2 {[%emt 0:00:58]} c6 {[%emt 0:02:49]} 6. Nc3 {[%emt 0:02:35]} exf3 {[%emt 0:03:45]} 7. Nxf3 {[%emt 0:00:07]} Nf6 {[%emt 0:00:43]} 8. O-O-O {[%emt 0:00:38]} e6 {[%emt 0:01:36]} 9. h3 {[%emt 0:00:15]} Bxf3 {[%emt 0:01:11]} 10. Qxf3 {[%emt 0:00:15]} Qa5 {[%emt 0:01:26]} 11. Kb1 {[%emt 0:02:56]} Nbd7 {[%emt 0:03:36]} 12. g4 {[%emt 0:03:06]} Ba3 {[%emt 0:03:06]} 13. Ba1 {[%emt 0:03:02]} h5 {[%emt 0:01:41]} 14. Rg1 {[%emt 0:03:38]} hxg4 {[%emt 0:04:23]} 15. hxg4 {[%emt 0:00:07]} Qg5 {[%emt 0:00:55]} 16. Ne4 {[%emt 0:04:29]} Nxe4 {[%emt 0:00:54]} 17. Qxe4 {[%emt 0:00:05]} Be7 {[%emt 0:01:33]} 18. Qf3 {[%emt 0:03:01]} Bf6 {[%emt 0:02:46]} 19. d4 {[%emt 0:00:38]} O-O-O {[%emt 0:01:10]} 20. Bd3 {[%emt 0:04:17]} Nb6 {[%emt 0:06:45]} 21. Be4 {[%emt 0:01:22]} Nd5 {[%emt 0:06:17]} 22. Bb2 {[%emt 0:01:25]} Nc7 {[%emt 0:03:55]} 23. c3 {[%emt 0:09:35]} Rh2 {[%emt 0:04:39]} 24. Bc1 {[%emt 0:10:03]} Qa5 {[%emt 0:01:09]} 25. Rd2 {[%emt 0:02:00]} Rdh8 {[%emt 0:14:41]} 26. g5 {[%emt 0:03:05]} R2h3 {[%emt 0:04:12]} 27. Qf1 {[%emt 0:05:29]} Bd8 {[%emt 0:12:10]} 28. b4 {[%emt 0:03:01]} Qb6 {[%emt 0:04:39]} 29. Qxf7 {[%emt 0:01:20]} a5 {[%emt 0:14:13]} 30. Qxg7 {[%emt 0:02:42]} Nb5 {[%emt 0:00:35]} 31. Bb2 {[%emt 0:01:54]} axb4 {[%emt 0:03:16]} 32. cxb4 {[%emt 0:00:05]} Nd6 {[%emt 0:00:13]} 33. Qe5 {[%emt 0:03:07]} Qxb4 {[%emt 0:01:39]} 34. Rc2 {[%emt 0:04:53]} Nxe4 {[%emt 0:03:19]} 35. Qxe6+ {[%emt 0:00:45]} Kb8 {[%emt 0:00:04]} 36. Qxe4 {[%emt 0:00:25]} R3h4 {[%emt 0:00:32]} 37. Qe5+ {[%emt 0:01:16]} Bc7 {[%emt 0:00:13]} 38. Qc5 {[%emt 0:01:18]} Qxc5 {[%emt 0:01:45]} 39. dxc5 {[%emt 0:00:05]} Rg8 {[%emt 0:00:10]} 40. g6 {[%emt 0:00:19]} Rh5 {[%emt 0:01:28]} 41. g7 {[%emt 0:01:22]} Be5 {[%emt 0:00:18]} 42. Rf2 {[%emt 0:02:05]} Bxg7 {[%emt 0:00:42]} 43. Bxg7 {[%emt 0:00:20]} Ka7 {[%emt 0:00:21]} 44. Rf3 {[%emt 0:03:18]} Ka6 {[%emt 0:00:44]} 45. Ra3+ {[%emt 0:00:17]} Kb5 {[%emt 0:00:01]} 46. Rb3+ {[%emt 0:00:09]} Ka6 {[%emt 0:00:35]} 47. Rg4 {[%emt 0:03:02]} Rxc5 {[%emt 0:00:53]} 48. Ra4+ {[%emt 0:00:13]} Ra5 {[%emt 0:00:01]} 49. Rxa5+ {[%emt 0:00:23]} Kxa5 {[%emt 0:00:01]} 50. Rxb7 {[%emt 0:00:12]} Ka6 {[%emt 0:00:03]} 51. Rd7 {[%emt 0:00:30]} Rb8+ {[%emt 0:00:23]} 52. Bb2 {[%emt 0:00:11]} Rb7 {[%emt 0:02:02]} 53. Rd6 {[%emt 0:00:11]} Kb5 {[%emt 0:00:08]} 54. Kc2 {[%emt 0:00:07]} Rh7 {[%emt 0:00:21]} 55. Kb3 {[%emt 0:00:19]} Rh3+ {[%emt 0:00:05]} 56. Bc3 {[%emt 0:00:05]} Kc5 {[%emt 0:00:03]} 57. Rd4 {[%emt 0:00:32]} Kb5 {[%emt 0:01:24]} 58. a4+ {[%emt 0:00:22]} Ka6 {[%emt 0:00:06]} 59. Rd7 {[%emt 0:00:59]} Rh1 {[%emt 0:00:54]} 60. Kc4 {[%emt 0:01:34]} Rb1 {[%emt 0:00:07]} 61. Bd4 {[%emt 0:01:14]} Rb7 {[%emt 0:00:08]} 62. Rd8 {[%emt 0:00:06]} Rb1 {[%emt 0:00:21]} 63. Ra8+ {[%emt 0:00:39]} Kb7 {[%emt 0:00:01]} 64. Ra7+ {[%emt 0:00:07]} Kb8 {[%emt 0:00:06]} 65. Rh7 {[%emt 0:00:56]} Rc1+ {[%emt 0:00:09]} 66. Kb4 {[%emt 0:00:13]} Rb1+ {[%emt 0:00:47]} 67. Kc5 {[%emt 0:00:05]} Rc1+ {[%emt 0:01:41]} 68. Kb6 {[%emt 0:00:10]} Rb1+ {[%emt 0:00:07]} 69. Kxc6 {[%emt 0:00:15]} Ka8 {[%emt 0:00:14]} 70. Bb6 {[%emt 0:00:36]} Rc1+ {[%emt 0:00:10]} 71. Kb5 {[%emt 0:00:11]} Kb8 {[%emt 0:02:16]} 72. Ka6 {[%emt 0:01:00]} Rc6 {[%emt 0:00:07]} 73. Rh8+ {[%emt 0:00:33]} Rc8 {[%emt 0:00:06]} 74. Rxc8+ {[%emt 0:00:06]} 1-0

[Event "Charlotte Open 2020"]
[Site "Charlotte"]
[Date "2020.01.05"]
[Round "8.8"]
[White "Narva, Mai"]
[Black "Wheeler, Cameron"]
[Result "1/2-1/2"]
[ECO "C02"]
[WhiteElo "2321"]
[BlackElo "2383"]
[Annotator "ChessBase"]
[PlyCount "98"]
[EventDate "2020.01.02"]
[EventType "swiss"]
[EventCountry "USA"]
[SourceTitle "playchess.com"]
[Source "ChessBase"]
[SourceQuality "1"]
[TimeControl "6000+30"]

1. e4 {[%emt 0:03:05]} e6 {[%emt 0:14:13]} 2. d4 {[%emt 0:00:07]} d5 {[%emt 0:00:05]} 3. e5 {[%emt 0:00:10]} c5 {[%emt 0:00:06]} 4. c3 {[%emt 0:00:08]} Nc6 {[%emt 0:01:09]} 5. Nf3 {[%emt 0:00:13]} Qb6 {[%emt 0:00:07]} 6. a3 {[%emt 0:00:08]} c4 {[%emt 0:00:04]} 7. Nbd2 {[%emt 0:00:19]} Na5 {[%emt 0:00:10]} 8. g3 {[%emt 0:01:24]} Bd7 {[%emt 0:00:09]} 9. h4 {[%emt 0:00:41]} Ne7 {[%emt 0:04:15]} 10. Bh3 {[%emt 0:01:10]} Nc8 {[%emt 0:00:40]} 11. h5 {[%emt 0:09:01]} Qc7 {[%emt 0:08:00]} 12. Rb1 {[%emt 0:05:21]} Nb6 {[%emt 0:02:56]} 13. h6 {[%emt 0:09:15]} Ba4 {[%emt 0:03:13]} 14. Qe2 {[%emt 0:06:26]} Bc2 {[%emt 0:01:30]} 15. hxg7 {[%emt 0:03:42]} Bxg7 {[%emt 0:00:07]} 16. Ra1 {[%emt 0:00:55]} Qc6 {[%emt 0:07:21]} 17. Bg4 {[%emt 0:10:27]} Bg6 {[%emt 0:13:00]} 18. Nh4 {[%emt 0:10:38]} O-O-O {[%emt 0:02:54]} 19. f4 {[%emt 0:09:13]} Bd3 {[%emt 0:01:09]} 20. Qe3 {[%emt 0:01:54]} h5 {[%emt 0:01:00]} 21. Bd1 {[%emt 0:02:10]} Na4 {[%emt 0:04:39]} 22. Be2 {[%emt 0:09:50]} Bc2 {[%emt 0:02:35]} 23. Bd1 {[%emt 0:03:47]} Bxd1 {[%emt 0:05:23]} 24. Kxd1 {[%emt 0:00:08]} Qb5 {[%emt 0:00:11]} 25. Rb1 {[%emt 0:01:07]} Rdg8 {[%emt 0:02:05]} 26. Ke2 {[%emt 0:08:25]} Bf8 {[%emt 0:01:07]} 27. Kf2 {[%emt 0:01:28]} Be7 {[%emt 0:01:47]} 28. Nhf3 {[%emt 0:05:02]} Nb3 {[%emt 0:06:36]} 29. Ng5 {[%emt 0:05:36]} Nxd2 {[%emt 0:06:39]} 30. Bxd2 {[%emt 0:00:48]} Bxg5 {[%emt 0:06:18]} 31. fxg5 {[%emt 0:00:07]} Qb3 {[%emt 0:00:11]} 32. Qe2 {[%emt 0:01:18]} Qc2 {[%emt 0:00:54]} 33. Be3 {[%emt 0:01:17]} Qf5+ {[%emt 0:04:00]} 34. Qf3 {[%emt 0:00:52]} Qc2+ {[%emt 0:04:52]} 35. Qe2 {[%emt 0:00:10]} Qe4 {[%emt 0:00:12]} 36. Qf3 {[%emt 0:00:58]} Qg6 {[%emt 0:01:54]} 37. Kg2 {[%emt 0:00:30]} b5 {[%emt 0:02:20]} 38. Kh3 {[%emt 0:00:36]} Rh7 {[%emt 0:00:53]} 39. Rhf1 {[%emt 0:00:30]} h4 {[%emt 0:00:58]} 40. g4 {[%emt 0:00:31]} Kd7 {[%emt 0:00:21]} 41. Qg2 {[%emt 0:00:32]} Qd3 {[%emt 0:00:25]} 42. Qd2 {[%emt 0:00:21]} Qe4 {[%emt 0:01:35]} 43. Rbe1 {[%emt 0:00:22]} Rhg7 {[%emt 0:01:06]} 44. Rf4 {[%emt 0:00:38]} Qh7 {[%emt 0:00:06]} 45. Ref1 {[%emt 0:00:34]} Kc6 {[%emt 0:00:34]} 46. Rf6 {[%emt 0:00:30]} Qe4 {[%emt 0:00:19]} 47. R6f4 {[%emt 0:00:29]} Qh7 {[%emt 0:00:06]} 48. Rf6 {[%emt 0:00:31]} Qe4 {[%emt 0:01:27]} 49. R6f4 {[%emt 0:00:33]} Qh7 {[%emt 0:00:13]} 1/2-1/2

[Event "Charlotte Open 2020"]
[Site "Charlotte"]
[Date "2020.01.05"]
[Round "8.9"]
[White "Tsolakidou, Stavroula"]
[Black "Mulyar, Michael"]
[Result "1/2-1/2"]
[ECO "C77"]
[WhiteElo "2403"]
[BlackElo "2380"]
[Annotator "ChessBase"]
[PlyCount "71"]
[EventDate "2020.01.02"]
[EventType "swiss"]
[EventCountry "USA"]
[SourceTitle "playchess.com"]
[Source "ChessBase"]
[SourceQuality "1"]
[TimeControl "6000+30"]

1. e4 {[%emt 0:09:05]} e5 {[%emt 0:00:00]} 2. Nf3 {[%emt 0:00:07]} Nc6 {[%emt 0:00:00]} 3. Bb5 {[%emt 0:00:06]} a6 {[%emt 0:00:00]} 4. Ba4 {[%emt 0:00:05]} Nf6 {[%emt 0:00:00]} 5. d3 {[%emt 0:00:07]} b5 {[%emt 0:00:39]} 6. Bb3 {[%emt 0:00:05]} Bc5 {[%emt 0:00:05]} 7. Nc3 {[%emt 0:00:41]} h6 {[%emt 0:00:20]} 8. Nd5 {[%emt 0:00:20]} d6 {[%emt 0:00:04]} 9. c3 {[%emt 0:00:12]} Be6 {[%emt 0:00:03]} 10. Nxf6+ {[%emt 0:03:40]} Qxf6 {[%emt 0:00:24]} 11. O-O {[%emt 0:00:09]} Bb6 {[%emt 0:01:01]} 12. Be3 {[%emt 0:32:31]} O-O {[%emt 0:00:08]} 13. a4 {[%emt 0:10:35]} Rab8 {[%emt 0:06:06]} 14. Bxe6 {[%emt 0:07:12]} Qxe6 {[%emt 0:00:20]} 15. b4 {[%emt 0:00:05]} Bxe3 {[%emt 0:11:47]} 16. fxe3 {[%emt 0:00:05]} d5 {[%emt 0:00:54]} 17. exd5 {[%emt 0:06:37]} Qxd5 {[%emt 0:00:06]} 18. e4 {[%emt 0:00:08]} Qe6 {[%emt 0:02:20]} 19. axb5 {[%emt 0:00:25]} axb5 {[%emt 0:00:04]} 20. Qd2 {[%emt 0:04:34]} Ra8 {[%emt 0:02:28]} 21. Qf2 {[%emt 0:03:53]} Qd6 {[%emt 0:04:33]} 22. Rxa8 {[%emt 0:04:58]} Rxa8 {[%emt 0:00:05]} 23. Nh4 {[%emt 0:00:08]} f6 {[%emt 0:10:31]} 24. Nf5 {[%emt 0:02:11]} Qf8 {[%emt 0:00:07]} 25. d4 {[%emt 0:03:06]} exd4 {[%emt 0:00:49]} 26. cxd4 {[%emt 0:00:22]} Ne7 {[%emt 0:01:29]} 27. Nh4 {[%emt 0:02:44]} Nc6 {[%emt 0:05:08]} 28. e5 {[%emt 0:02:03]} fxe5 {[%emt 0:01:53]} 29. Qc2 {[%emt 0:01:33]} Qxb4 {[%emt 0:04:38]} 30. Qxc6 {[%emt 0:07:26]} Qxd4+ {[%emt 0:00:31]} 31. Kh1 {[%emt 0:00:05]} Ra1 {[%emt 0:00:10]} 32. Qe6+ {[%emt 0:00:18]} Kh7 {[%emt 0:00:04]} 33. Qf5+ {[%emt 0:00:08]} Kg8 {[%emt 0:00:03]} 34. Qe6+ {[%emt 0:08:13]} Kh7 {[%emt 0:00:05]} 35. Qf5+ {[%emt 0:00:03]} Kg8 {[%emt 0:00:06]} 36. Qe6+ {[%emt 0:00:06]} 1/2-1/2

[Event "Charlotte Open 2020"]
[Site "Charlotte"]
[Date "2020.01.05"]
[Round "8.10"]
[White "Ezra Paul Chambers"]
[Black "Ringoir, Tanguy"]
[Result "0-1"]
[ECO "C48"]
[WhiteElo "2265"]
[BlackElo "2501"]
[Annotator "ChessBase"]
[PlyCount "124"]
[EventDate "2020.01.02"]
[EventType "swiss"]
[EventCountry "USA"]
[SourceTitle "playchess.com"]
[Source "ChessBase"]
[SourceQuality "1"]
[TimeControl "6000+30"]

1. e4 {[%emt 0:00:00]} e5 {[%emt 0:04:45]} 2. Nf3 {[%emt 0:00:00]} Nc6 {[%emt 0:00:04]} 3. Nc3 {[%emt 0:00:00]} Nf6 {[%emt 0:00:05]} 4. Bb5 {[%emt 0:00:02]} Bd6 {[%emt 0:00:05]} 5. d3 {[%emt 0:01:05]} O-O {[%emt 0:00:16]} 6. a3 {[%emt 0:00:35]} Re8 {[%emt 0:00:56]} 7. Bg5 {[%emt 0:04:07]} h6 {[%emt 0:01:47]} 8. Bh4 {[%emt 0:02:11]} Be7 {[%emt 0:03:33]} 9. O-O {[%emt 0:04:10]} d6 {[%emt 0:01:20]} 10. h3 {[%emt 0:03:45]} a6 {[%emt 0:09:03]} 11. Bxc6 {[%emt 0:13:25]} bxc6 {[%emt 0:00:03]} 12. d4 {[%emt 0:01:31]} Nd7 {[%emt 0:01:06]} 13. Bxe7 {[%emt 0:02:32]} Qxe7 {[%emt 0:00:07]} 14. Re1 {[%emt 0:01:18]} Qf6 {[%emt 0:01:33]} 15. Qd2 {[%emt 0:05:18]} Nf8 {[%emt 0:04:58]} 16. dxe5 {[%emt 0:04:58]} dxe5 {[%emt 0:00:03]} 17. Qe3 {[%emt 0:00:33]} Ne6 {[%emt 0:02:04]} 18. Rad1 {[%emt 0:03:33]} Rb8 {[%emt 0:02:29]} 19. b3 {[%emt 0:01:33]} Kh7 {[%emt 0:08:23]} 20. Rd2 {[%emt 0:09:12]} g5 {[%emt 0:05:45]} 21. Ne2 {[%emt 0:05:57]} Rb5 {[%emt 0:00:45]} 22. g3 {[%emt 0:08:19]} Rg8 {[%emt 0:04:57]} 23. Kh2 {[%emt 0:01:29]} h5 {[%emt 0:07:30]} 24. Rdd1 {[%emt 0:09:26]} c5 {[%emt 0:01:37]} 25. h4 {[%emt 0:03:35]} gxh4 {[%emt 0:01:58]} 26. Nxh4 {[%emt 0:02:31]} Nd4 {[%emt 0:00:14]} 27. Nxd4 {[%emt 0:01:18]} cxd4 {[%emt 0:00:07]} 28. Qe2 {[%emt 0:00:05]} Rg4 {[%emt 0:04:00]} 29. Rh1 {[%emt 0:02:36]} Rxh4+ {[%emt 0:02:49]} 30. gxh4 {[%emt 0:00:13]} Bg4 {[%emt 0:01:05]} 31. Qd2 {[%emt 0:02:55]} Rc5 {[%emt 0:14:18]} 32. Rdg1 {[%emt 0:03:48]} Rc3 {[%emt 0:00:52]} 33. Rg3 {[%emt 0:00:33]} Qxh4+ {[%emt 0:00:37]} 34. Kg1 {[%emt 0:00:58]} Rxg3+ {[%emt 0:00:27]} 35. fxg3 {[%emt 0:00:06]} Qxg3+ {[%emt 0:00:02]} 36. Qg2 {[%emt 0:00:16]} Qc3 {[%emt 0:05:52]} 37. Qf2 {[%emt 0:01:08]} Kg7 {[%emt 0:00:12]} 38. Kh2 {[%emt 0:01:13]} Qh3+ {[%emt 0:04:40]} 39. Kg1 {[%emt 0:00:04]} Qf3 {[%emt 0:00:02]} 40. Qd2 {[%emt 0:03:22]} Qg3+ {[%emt 0:02:06]} 41. Qg2 {[%emt 0:00:05]} Qe3+ {[%emt 0:00:12]} 42. Kh2 {[%emt 0:00:45]} Qf4+ {[%emt 0:00:06]} 43. Kg1 {[%emt 0:00:37]} Kg6 {[%emt 0:00:30]} 44. Rh3 {[%emt 0:01:40]} Kg5 {[%emt 0:00:26]} 45. Rd3 {[%emt 0:00:13]} h4 {[%emt 0:02:13]} 46. c3 {[%emt 0:10:00]} c5 {[%emt 0:00:34]} 47. cxd4 {[%emt 0:00:00]} cxd4 {[%emt 0:01:47]} 48. b4 {[%emt 0:00:00]} f5 {[%emt 0:00:48]} 49. exf5 {[%emt 0:00:00]} Qxf5 {[%emt 0:00:01]} 50. Rd2 {[%emt 0:00:00]} Qb1+ {[%emt 0:01:57]} 51. Kh2 {[%emt 0:00:00]} Qe1 {[%emt 0:00:02]} 52. a4 {[%emt 0:00:00]} h3 {[%emt 0:01:08]} 53. Qf2 {[%emt 0:00:00]} Qxf2+ {[%emt 0:01:14]} 54. Rxf2 {[%emt 0:00:00]} d3 {[%emt 0:00:57]} 55. b5 {[%emt 0:00:00]} axb5 {[%emt 0:01:37]} 56. axb5 {[%emt 0:00:00]} e4 {[%emt 0:00:03]} 57. b6 {[%emt 0:00:00]} Bc8 {[%emt 0:00:01]} 58. Kg3 {[%emt 0:00:00]} e3 {[%emt 0:00:15]} 59. Rf1 {[%emt 0:00:00]} e2 {[%emt 0:00:44]} 60. Rg1 {[%emt 0:00:00]} h2 {[%emt 0:00:24]} 61. Kxh2+ {[%emt 0:00:00]} Kf4 {[%emt 0:00:01]} 62. Kg2 {[%emt 0:00:00]} d2 {[%emt 0:00:06]} 0-1

[Event "Charlotte Open 2020"]
[Site "Charlotte"]
[Date "2020.01.05"]
[Round "8.11"]
[White "Paul, Justin"]
[Black "Peng, Shunkai"]
[Result "0-1"]
[ECO "B90"]
[WhiteElo "2270"]
[BlackElo "2315"]
[Annotator "ChessBase"]
[PlyCount "102"]
[EventDate "2020.01.02"]
[EventType "swiss"]
[EventCountry "USA"]
[SourceTitle "playchess.com"]
[Source "ChessBase"]
[SourceQuality "1"]
[TimeControl "6000+30"]

1. e4 {[%emt 1:40:30]} c5 {[%emt 1:40:30]} 2. Nf3 {[%emt 0:00:30]} d6 {[%emt 0:00:30]} 3. d4 {[%emt 0:00:30]} Nf6 {[%emt 0:00:30]} 4. Nc3 {[%emt 0:00:30]} cxd4 {[%emt 0:00:30]} 5. Nxd4 {[%emt 0:00:30]} a6 {[%emt 0:00:30]} 6. h3 {[%emt 0:00:30]} e5 {[%emt 0:00:30]} 7. Nb3 {[%emt 0:00:30]} Be6 {[%emt 0:00:30]} 8. f4 {[%emt 0:00:30]} exf4 {[%emt 0:00:30]} 9. Bxf4 {[%emt 0:00:30]} Nc6 {[%emt 0:00:30]} 10. Qe2 {[%emt 0:00:30]} Ne5 {[%emt 0:00:30]} 11. O-O-O {[%emt 0:00:30]} Nfd7 {[%emt 0:00:30]} 12. Nd5 {[%emt 0:00:30]} Rc8 {[%emt 0:00:30]} 13. Qf2 {[%emt 0:00:30]} g6 {[%emt 0:00:30]} 14. Kb1 {[%emt 0:00:30]} Bg7 {[%emt 0:00:30]} 15. Qa7 {[%emt 0:00:30]} Bxd5 {[%emt 0:00:30]} 16. Rxd5 {[%emt 0:00:30]} Qc7 {[%emt 0:00:30]} 17. Rd2 {[%emt 0:00:30]} O-O {[%emt 0:00:30]} 18. Bxa6 {[%emt 0:00:30]} bxa6 {[%emt 0:00:30]} 19. Qxc7 {[%emt 0:00:30]} Rxc7 {[%emt 0:00:30]} 20. Rxd6 {[%emt 0:00:30]} Rfc8 {[%emt 0:00:30]} 21. c3 {[%emt 0:00:30]} Rc6 {[%emt 0:00:30]} 22. Rd5 {[%emt 0:00:30]} Kf8 {[%emt 0:00:30]} 23. Rhd1 {[%emt 0:00:30]} Ke7 24. Bg5+ {[%emt 0:00:30]} Bf6 {[%emt 0:01:00]} 25. Be3 {[%emt 0:00:30]} Nb6 {[%emt 0:00:30]} 26. Rc5 {[%emt 0:00:30]} Nbc4 {[%emt 0:00:30]} 27. Rxc6 {[%emt 0:00:30]} Nxc6 {[%emt 0:00:30]} 28. Bc5+ {[%emt 0:00:30]} Ke6 {[%emt 0:00:30]} 29. Bd4 {[%emt 0:00:30]} Nxd4 {[%emt 0:00:30]} 30. cxd4 {[%emt 0:00:30]} Be7 {[%emt 0:00:30]} 31. Rc1 {[%emt 0:00:30]} Nb6 {[%emt 0:00:30]} 32. Rf1 {[%emt 0:00:30]} f5 {[%emt 0:00:30]} 33. d5+ {[%emt 0:00:30]} Ke5 {[%emt 0:00:30]} 34. exf5 {[%emt 0:00:30]} Nxd5 {[%emt 0:00:30]} 35. fxg6 {[%emt 0:00:30]} hxg6 {[%emt 0:00:30]} 36. Re1+ {[%emt 0:00:30]} Kd6 {[%emt 0:00:30]} 37. Nd2 {[%emt 0:00:30]} Nf4 {[%emt 0:00:30]} 38. Re4 {[%emt 0:00:30]} Nxg2 {[%emt 0:00:30]} 39. b3 {[%emt 0:00:30]} Rc7 {[%emt 0:00:30]} 40. Nc4+ {[%emt 0:00:30]} Kd5 {[%emt 0:00:30]} 41. Re5+ {[%emt 0:00:30]} Kd4 {[%emt 0:00:30]} 42. Re6 {[%emt 0:00:30]} g5 {[%emt 0:00:30]} 43. Rxa6 {[%emt 0:00:30]} Ne3 {[%emt 0:00:30]} 44. Ra4 {[%emt 0:00:30]} Nxc4 {[%emt 0:00:30]} 45. Kc2 {[%emt 0:00:30]} Kd5 {[%emt 0:00:30]} 46. bxc4+ {[%emt 0:00:30]} Rxc4+ {[%emt 0:00:30]} 47. Rxc4 {[%emt 0:00:30]} Kxc4 48. Kd2 {[%emt 0:00:30]} Kd4 {[%emt 0:01:00]} 49. Ke2 {[%emt 0:00:30]} Ke4 {[%emt 0:00:30]} 50. a4 {[%emt 0:00:30]} Bc5 {[%emt 0:00:30]} 51. a5 {[%emt 0:00:30]} Kf4 {[%emt 0:00:30]} 0-1

[Event "Charlotte Open 2020"]
[Site "Charlotte"]
[Date "2020.01.05"]
[Round "8.12"]
[White "Wang, Tianqi"]
[Black "Kolay, Alex"]
[Result "1/2-1/2"]
[ECO "A11"]
[WhiteElo "2314"]
[BlackElo "2261"]
[Annotator "ChessBase"]
[PlyCount "95"]
[EventDate "2020.01.02"]
[EventType "swiss"]
[EventCountry "USA"]
[SourceTitle "playchess.com"]
[Source "ChessBase"]
[SourceQuality "1"]
[TimeControl "6000+30"]

1. Nf3 {[%emt 1:40:30]} Nf6 {[%emt 1:40:30]} 2. c4 {[%emt 0:00:30]} c6 {[%emt 0:00:30]} 3. g3 {[%emt 0:00:30]} d5 {[%emt 0:00:30]} 4. Qa4 {[%emt 0:00:30]} Nbd7 {[%emt 0:00:30]} 5. cxd5 {[%emt 0:00:30]} cxd5 {[%emt 0:00:30]} 6. Nc3 {[%emt 0:00:30]} e6 {[%emt 0:00:30]} 7. Bg2 {[%emt 0:00:30]} Be7 {[%emt 0:00:30]} 8. O-O {[%emt 0:00:30]} O-O {[%emt 0:00:30]} 9. d4 {[%emt 0:00:30]} b6 {[%emt 0:00:30]} 10. Ne1 {[%emt 0:00:30]} Bb7 {[%emt 0:00:30]} 11. Nd3 {[%emt 0:00:30]} Rc8 {[%emt 0:00:30]} 12. e3 {[%emt 0:00:30]} Ne4 {[%emt 0:00:30]} 13. Nxe4 {[%emt 0:00:30]} dxe4 {[%emt 0:00:30]} 14. Nf4 {[%emt 0:00:30]} Bc6 {[%emt 0:00:30]} 15. Qb3 {[%emt 0:00:30]} Nf6 {[%emt 0:00:30]} 16. Bd2 {[%emt 0:00:30]} Bd6 {[%emt 0:00:30]} 17. Bb4 {[%emt 0:00:30]} Qe7 {[%emt 0:00:30]} 18. Bxd6 {[%emt 0:00:30]} Qxd6 {[%emt 0:00:30]} 19. Rfc1 {[%emt 0:00:30]} Rc7 {[%emt 0:00:30]} 20. a3 {[%emt 0:00:30]} Rfc8 {[%emt 0:00:30]} 21. Qd1 {[%emt 0:00:30]} Bb7 {[%emt 0:00:30]} 22. Ne2 {[%emt 0:00:30]} Rxc1 {[%emt 0:00:30]} 23. Rxc1 {[%emt 0:00:30]} Rxc1 {[%emt 0:00:30]} 24. Qxc1 {[%emt 0:00:30]} Qc6 {[%emt 0:00:30]} 25. Nc3 {[%emt 0:00:30]} h6 {[%emt 0:00:30]} 26. Qd1 {[%emt 0:00:30]} g6 {[%emt 0:00:30]} 27. Qb3 {[%emt 0:00:30]} Kg7 {[%emt 0:00:30]} 28. h4 {[%emt 0:00:30]} h5 {[%emt 0:00:30]} 29. Bf1 {[%emt 0:00:30]} Nd5 {[%emt 0:00:30]} 30. Bb5 {[%emt 0:00:30]} Qc7 {[%emt 0:00:30]} 31. Qa4 {[%emt 0:00:30]} Nxc3 {[%emt 0:00:30]} 32. bxc3 {[%emt 0:00:30]} a6 {[%emt 0:00:30]} 33. Qc4 {[%emt 0:00:30]} Qxc4 {[%emt 0:00:30]} 34. Bxc4 {[%emt 0:00:30]} Kf6 {[%emt 0:00:30]} 35. Kf1 {[%emt 0:00:30]} Ke7 {[%emt 0:00:30]} 36. Ke1 {[%emt 0:00:30]} Kd6 {[%emt 0:00:30]} 37. Kd2 {[%emt 0:00:30]} b5 {[%emt 0:00:30]} 38. Be2 {[%emt 0:00:30]} Bd5 {[%emt 0:00:30]} 39. Kc1 {[%emt 0:00:30]} Kc6 {[%emt 0:00:30]} 40. Kb2 {[%emt 0:00:30]} Kb6 {[%emt 0:00:30]} 41. Bd1 {[%emt 0:00:30]} a5 {[%emt 0:00:30]} 42. a4 {[%emt 0:00:30]} b4 {[%emt 0:00:30]} 43. Bb3 {[%emt 0:00:30]} bxc3+ {[%emt 0:00:30]} 44. Kxc3 {[%emt 0:00:30]} Bxb3 {[%emt 0:00:30]} 45. Kxb3 {[%emt 0:00:30]} Kc6 {[%emt 0:00:30]} 46. Kc4 {[%emt 0:00:30]} f6 {[%emt 0:00:30]} 47. Kb3 {[%emt 0:00:30]} Kd5 {[%emt 0:00:30]} 48. Kc3 {[%emt 0:00:30]} 1/2-1/2